[Event "*** SCC Grand Prix: Titled Tuesday Blitz"]
[Site "Chess.com"]
[Date "2020.08.25"]
[Round "5"]
[White "Paladin61"]
[Black "MasterKroket"]
[Result "1-0"]
[WhiteElo "2680"]
[BlackElo "2425"]
[TimeControl "180+1"]
[EndTime "10:55:55 PDT"]
[Termination "Paladin61 won by resignation"]

1. b3 {[%clk 0:03:00.9]} 1... e5 {[%clk 0:02:59.5]} 2. Bb2 {[%clk 0:03:01.1]}
2... Nc6 {[%clk 0:03:00]} 3. e3 {[%clk 0:03:01.5]} 3... Nf6 {[%clk 0:03:00.5]}
4. Bb5 {[%clk 0:03:00.8]} 4... d6 {[%clk 0:03:00.5]} 5. Ne2 {[%clk 0:02:59.4]}
5... Bd7 {[%clk 0:03:00.5]} 6. d4 {[%clk 0:02:56]} 6... Be7 {[%clk 0:02:55.7]}
7. O-O {[%clk 0:02:34.1]} 7... exd4 {[%clk 0:02:40.3]} 8. Nxd4 {[%clk
0:02:33.3]} 8... O-O {[%clk 0:02:37.2]} 9. Bxc6 {[%clk 0:02:32]} 9... bxc6
{[%clk 0:02:37.1]} 10. Qf3 {[%clk 0:02:31.6]} 10... c5 {[%clk 0:02:33.9]} 11.
Nc6 {[%clk 0:02:24.7]} 11... Qe8 {[%clk 0:02:30.2]} 12. Nxe7+ {[%clk 0:02:22]}
12... Qxe7 {[%clk 0:02:31.1]} 13. Bxf6 {[%clk 0:02:21.9]} 13... gxf6 {[%clk
0:02:27.2]} 14. Nc3 {[%clk 0:02:19]} 14... f5 {[%clk 0:02:10.7]} 15. Nd5 {[%clk
0:02:15.2]} 15... Qd8 {[%clk 0:02:10.9]} 16. c4 {[%clk 0:01:53.5]} 16... Kh8
{[%clk 0:02:10.6]} 17. Rad1 {[%clk 0:01:43.3]} 17... Rg8 {[%clk 0:02:09.7]} 18.
Qe2 {[%clk 0:01:34.3]} 18... Bc6 {[%clk 0:02:02.4]} 19. Qb2+ {[%clk 0:01:23.4]}
19... Rg7 {[%clk 0:02:01.7]} 20. g3 {[%clk 0:01:07.1]} 20... Qg5 {[%clk
0:01:55.7]} 21. Qf6 {[%clk 0:00:50.2]} 21... Qg4 {[%clk 0:01:42.4]} 22. Rd2
{[%clk 0:00:44.8]} 22... Qf3 {[%clk 0:01:38.3]} 23. Qh4 {[%clk 0:00:36.5]} 23...
Re8 {[%clk 0:01:24.1]} 24. Qf4 {[%clk 0:00:32.5]} 24... Qe4 {[%clk 0:01:12.5]}
25. Qxe4 {[%clk 0:00:30.8]} 25... fxe4 {[%clk 0:01:12.5]} 26. Nxc7 {[%clk
0:00:29.5]} 26... Rd8 {[%clk 0:01:08.8]} 27. Rfd1 {[%clk 0:00:28.4]} 27... Rg6
{[%clk 0:01:09.4]} 28. Nd5 {[%clk 0:00:25.4]} 28... Re8 {[%clk 0:01:08.3]} 29.
Nf4 {[%clk 0:00:23.9]} 1-0

[Event "*** SCC Grand Prix: Titled Tuesday Blitz"]
[Site "Chess.com"]
[Date "2020.08.25"]
[Round "5"]
[White "Schack-Hugo"]
[Black "GustavoJuarezF"]
[Result "1-0"]
[WhiteElo "2288"]
[BlackElo "2063"]
[TimeControl "180+1"]
[EndTime "10:55:55 PDT"]
[Termination "Schack-Hugo won on time"]

1. d4 {[%clk 0:03:00.9]} 1... Nf6 {[%clk 0:02:58.4]} 2. Nf3 {[%clk 0:02:59]}
2... d5 {[%clk 0:02:55.9]} 3. g3 {[%clk 0:02:57.2]} 3... e6 {[%clk 0:02:55.6]}
4. Bg2 {[%clk 0:02:56.9]} 4... c5 {[%clk 0:02:52.8]} 5. c3 {[%clk 0:02:55.7]}
5... Nc6 {[%clk 0:02:47.2]} 6. O-O {[%clk 0:02:55]} 6... cxd4 {[%clk 0:02:42.1]}
7. cxd4 {[%clk 0:02:54.6]} 7... Be7 {[%clk 0:02:42.2]} 8. Nc3 {[%clk 0:02:53.9]}
8... O-O {[%clk 0:02:41.8]} 9. b3 {[%clk 0:02:49.5]} 9... b6 {[%clk 0:02:40.8]}
10. Bb2 {[%clk 0:02:49.4]} 10... Ba6 {[%clk 0:02:40.3]} 11. Rc1 {[%clk
0:02:45.8]} 11... Rc8 {[%clk 0:02:39.9]} 12. Re1 {[%clk 0:02:39.8]} 12... Na5
{[%clk 0:02:11.4]} 13. Ne5 {[%clk 0:02:31.6]} 13... Nd7 {[%clk 0:02:09.9]} 14.
f4 {[%clk 0:02:22.6]} 14... Nxe5 {[%clk 0:02:04.9]} 15. fxe5 {[%clk 0:02:22.3]}
15... Bg5 {[%clk 0:02:04.1]} 16. e3 {[%clk 0:02:20.5]} 16... Nc6 {[%clk
0:01:59.8]} 17. h4 {[%clk 0:02:06]} 17... Bh6 {[%clk 0:01:53.9]} 18. Qh5 {[%clk
0:01:53.2]} 18... Nxd4 {[%clk 0:01:25.2]} 19. exd4 {[%clk 0:01:46.2]} 19... Bxc1
{[%clk 0:01:23.5]} 20. Rxc1 {[%clk 0:01:47.1]} 20... Bd3 {[%clk 0:01:20]} 21.
Qf3 {[%clk 0:01:41.9]} 21... Ba6 {[%clk 0:00:50]} 22. Bf1 {[%clk 0:01:31.2]}
22... f6 {[%clk 0:00:49.9]} 23. Bxa6 {[%clk 0:01:29.4]} 23... fxe5 {[%clk
0:00:41.1]} 24. Qe3 {[%clk 0:01:18.8]} 24... Rc7 {[%clk 0:00:35.5]} 25. Qxe5
{[%clk 0:01:16.8]} 1-0

[Event "*** SCC Grand Prix: Titled Tuesday Blitz"]
[Site "Chess.com"]
[Date "2020.08.25"]
[Round "5"]
[White "ketster"]
[Black "GaboSalazar2001"]
[Result "0-1"]
[WhiteElo "2433"]
[BlackElo "2293"]
[TimeControl "180+1"]
[EndTime "10:55:59 PDT"]
[Termination "GaboSalazar2001 won by checkmate"]

1. d4 {[%clk 0:02:53.5]} 1... Nf6 {[%clk 0:01:57]} 2. c4 {[%clk 0:02:52.5]} 2...
c5 {[%clk 0:01:57.2]} 3. d5 {[%clk 0:02:52]} 3... b5 {[%clk 0:01:57.8]} 4. Nd2
{[%clk 0:02:51.5]} 4... bxc4 {[%clk 0:01:55.5]} 5. e4 {[%clk 0:02:51]} 5... e6
{[%clk 0:01:55.9]} 6. Bxc4 {[%clk 0:02:45.1]} 6... exd5 {[%clk 0:01:53.4]} 7.
exd5 {[%clk 0:02:44.5]} 7... d6 {[%clk 0:01:48.9]} 8. Ngf3 {[%clk 0:02:41.5]}
8... Be7 {[%clk 0:01:49]} 9. O-O {[%clk 0:02:41.1]} 9... O-O {[%clk 0:01:49.7]}
10. a4 {[%clk 0:02:34.6]} 10... Nbd7 {[%clk 0:01:49.4]} 11. a5 {[%clk
0:02:34.3]} 11... Re8 {[%clk 0:01:43]} 12. Nb1 {[%clk 0:02:25.8]} 12... Ne4
{[%clk 0:01:38.7]} 13. Bd3 {[%clk 0:02:18.4]} 13... Bf6 {[%clk 0:01:28.9]} 14.
Qc2 {[%clk 0:02:13.2]} 14... Ng5 {[%clk 0:01:15.7]} 15. Nxg5 {[%clk 0:02:10.8]}
15... Bxg5 {[%clk 0:01:16.6]} 16. Bxh7+ {[%clk 0:02:11]} 16... Kh8 {[%clk
0:01:17.1]} 17. Ra3 {[%clk 0:01:54]} 17... Bxc1 {[%clk 0:00:52.5]} 18. Rxc1
{[%clk 0:01:50.3]} 18... Ne5 {[%clk 0:00:45.9]} 19. Bf5 {[%clk 0:01:47.2]} 19...
Qg5 {[%clk 0:00:42.6]} 20. Rh3+ {[%clk 0:01:39]} 20... Kg8 {[%clk 0:00:42.8]}
21. Bxc8 {[%clk 0:01:36.4]} 21... Raxc8 {[%clk 0:00:37.5]} 22. Nc3 {[%clk
0:01:33.3]} 22... Ng6 {[%clk 0:00:26.5]} 23. Rg3 {[%clk 0:01:26]} 23... Qe5
{[%clk 0:00:26.4]} 24. a6 {[%clk 0:00:58.8]} 24... Qe1+ {[%clk 0:00:23]} 25.
Rxe1 {[%clk 0:00:58.1]} 25... Rxe1# {[%clk 0:00:23]} 0-1

[Event "*** SCC Grand Prix: Titled Tuesday Blitz"]
[Site "Chess.com"]
[Date "2020.08.25"]
[Round "5"]
[White "Artyom_ChessMate"]
[Black "GOGIEFF"]
[Result "0-1"]
[WhiteElo "2578"]
[BlackElo "2857"]
[TimeControl "180+1"]
[EndTime "10:56:02 PDT"]
[Termination "GOGIEFF won by resignation"]

1. e4 {[%clk 0:03:00.9]} 1... c5 {[%clk 0:02:58.8]} 2. Nc3 {[%clk 0:03:01.5]}
2... Nc6 {[%clk 0:02:57.4]} 3. Bb5 {[%clk 0:03:01.4]} 3... e6 {[%clk 0:02:56.7]}
4. Bxc6 {[%clk 0:03:01]} 4... bxc6 {[%clk 0:02:57.6]} 5. d3 {[%clk 0:03:01.8]}
5... Ne7 {[%clk 0:02:57.1]} 6. f4 {[%clk 0:03:01.9]} 6... d5 {[%clk 0:02:57.2]}
7. Nf3 {[%clk 0:03:02.3]} 7... Ng6 {[%clk 0:02:56.1]} 8. O-O {[%clk 0:03:01.6]}
8... Be7 {[%clk 0:02:54.3]} 9. Qe1 {[%clk 0:02:30.8]} 9... O-O {[%clk
0:02:51.7]} 10. b3 {[%clk 0:02:27.9]} 10... c4 {[%clk 0:02:44.5]} 11. dxc4
{[%clk 0:02:18.7]} 11... dxc4 {[%clk 0:02:37.6]} 12. Be3 {[%clk 0:02:15.2]}
12... Qc7 {[%clk 0:02:31.3]} 13. Rd1 {[%clk 0:02:08]} 13... cxb3 {[%clk
0:02:22.8]} 14. axb3 {[%clk 0:02:07.3]} 14... Ba6 {[%clk 0:02:22.4]} 15. f5
{[%clk 0:01:32.7]} 15... Bxf1 {[%clk 0:02:07.8]} 16. fxg6 {[%clk 0:01:31.7]}
16... Bb5 {[%clk 0:02:03.9]} 17. gxh7+ {[%clk 0:01:31.6]} 17... Kxh7 {[%clk
0:02:02.7]} 18. Bg5 {[%clk 0:01:11.8]} 18... f6 {[%clk 0:01:59.2]} 19. Qh4+
{[%clk 0:01:07.8]} 19... Kg8 {[%clk 0:01:58]} 20. Be3 {[%clk 0:01:03.3]} 20...
Rad8 {[%clk 0:01:56.5]} 21. Ra1 {[%clk 0:00:55.1]} 21... a6 {[%clk 0:01:51.4]}
22. Qg4 {[%clk 0:00:54.2]} 22... Bb4 {[%clk 0:01:37.3]} 23. Nxb5 {[%clk
0:00:44.5]} 23... cxb5 {[%clk 0:01:33.2]} 24. Qxe6+ {[%clk 0:00:44.1]} 24... Qf7
{[%clk 0:01:31.9]} 25. Qxf7+ {[%clk 0:00:31.6]} 25... Rxf7 {[%clk 0:01:32.8]}
26. Rxa6 {[%clk 0:00:31.9]} 26... Re7 {[%clk 0:01:32.7]} 27. e5 {[%clk
0:00:29.3]} 27... fxe5 {[%clk 0:01:32.5]} 28. Bg5 {[%clk 0:00:21.7]} 28... Rd1+
{[%clk 0:01:31.4]} 29. Kf2 {[%clk 0:00:22.2]} 29... Re8 {[%clk 0:01:31.2]} 30.
Kg3 {[%clk 0:00:18.3]} 30... e4 {[%clk 0:01:30.9]} 31. Nh4 {[%clk 0:00:04]}
31... e3 {[%clk 0:01:31.2]} 32. Nf5 {[%clk 0:00:03.1]} 32... e2 {[%clk
0:01:30.9]} 33. Ra7 {[%clk 0:00:03.5]} 0-1

[Event "*** SCC Grand Prix: Titled Tuesday Blitz"]
[Site "Chess.com"]
[Date "2020.08.25"]
[Round "5"]
[White "anon102030"]
[Black "Zq1"]
[Result "1-0"]
[WhiteElo "2732"]
[BlackElo "2529"]
[TimeControl "180+1"]
[EndTime "10:56:03 PDT"]
[Termination "anon102030 won by resignation"]

1. e4 {[%clk 0:03:00.9]} 1... c5 {[%clk 0:02:59.3]} 2. Nc3 {[%clk 0:03:00.9]}
2... e6 {[%clk 0:02:58.8]} 3. g3 {[%clk 0:03:00.6]} 3... d5 {[%clk 0:02:58.8]}
4. exd5 {[%clk 0:02:59.6]} 4... exd5 {[%clk 0:02:58.7]} 5. d4 {[%clk 0:02:59.8]}
5... cxd4 {[%clk 0:02:42.2]} 6. Qxd4 {[%clk 0:03:00.7]} 6... Nf6 {[%clk
0:02:42]} 7. Bg2 {[%clk 0:02:57.5]} 7... Nc6 {[%clk 0:02:41.2]} 8. Qa4 {[%clk
0:02:52.2]} 8... Be7 {[%clk 0:02:33.4]} 9. Nge2 {[%clk 0:02:46.8]} 9... O-O
{[%clk 0:02:30.6]} 10. O-O {[%clk 0:02:42.7]} 10... Be6 {[%clk 0:02:21.7]} 11.
Bg5 {[%clk 0:02:29.5]} 11... h6 {[%clk 0:02:19.1]} 12. Bxf6 {[%clk 0:02:19.9]}
12... Bxf6 {[%clk 0:02:19.1]} 13. Rad1 {[%clk 0:02:19.8]} 13... d4 {[%clk
0:02:04.2]} 14. Ne4 {[%clk 0:02:10.2]} 14... Be5 {[%clk 0:02:00.7]} 15. c3
{[%clk 0:02:06.3]} 15... Bg4 {[%clk 0:01:43.1]} 16. f3 {[%clk 0:01:54.7]} 16...
Bd7 {[%clk 0:01:42.6]} 17. Nc5 {[%clk 0:01:44]} 17... Be8 {[%clk 0:01:42.3]} 18.
Qc2 {[%clk 0:01:32.3]} 18... Qb6 {[%clk 0:01:12.1]} 19. cxd4 {[%clk 0:01:30.1]}
19... Bf6 {[%clk 0:01:09.2]} 20. Kh1 {[%clk 0:01:26.4]} 20... Rc8 {[%clk
0:01:07.1]} 21. Ne4 {[%clk 0:01:12.5]} 21... Ne7 {[%clk 0:00:53.5]} 22. Nxf6+
{[%clk 0:01:10]} 22... Qxf6 {[%clk 0:00:53.5]} 23. Qb3 {[%clk 0:01:08.2]} 23...
Bc6 {[%clk 0:00:48.6]} 24. Nf4 {[%clk 0:00:59.8]} 24... g5 {[%clk 0:00:39.3]}
25. Nd3 {[%clk 0:00:58.9]} 25... Qxd4 {[%clk 0:00:34.7]} 26. Nb4 {[%clk
0:00:58.7]} 26... Qb6 {[%clk 0:00:33.3]} 27. Rfe1 {[%clk 0:00:56.8]} 27... Ng6
{[%clk 0:00:29.1]} 28. Rd6 {[%clk 0:00:55.4]} 28... Rfd8 {[%clk 0:00:26.2]} 1-0

[Event "*** SCC Grand Prix: Titled Tuesday Blitz"]
[Site "Chess.com"]
[Date "2020.08.25"]
[Round "5"]
[White "el-roedor"]
[Black "mishanick"]
[Result "0-1"]
[WhiteElo "2646"]
[BlackElo "2964"]
[TimeControl "180+1"]
[EndTime "10:56:05 PDT"]
[Termination "mishanick won by resignation"]

1. d4 {[%clk 0:03:00.9]} 1... Nf6 {[%clk 0:02:59.4]} 2. c4 {[%clk 0:02:59.8]}
2... e6 {[%clk 0:02:59.1]} 3. Nc3 {[%clk 0:02:59]} 3... Bb4 {[%clk 0:02:58.8]}
4. e3 {[%clk 0:02:59.1]} 4... O-O {[%clk 0:02:58.2]} 5. Bd2 {[%clk 0:02:59]}
5... c5 {[%clk 0:02:55.8]} 6. a3 {[%clk 0:02:57.7]} 6... Bxc3 {[%clk 0:02:55.6]}
7. Bxc3 {[%clk 0:02:57.4]} 7... Ne4 {[%clk 0:02:56.1]} 8. Rc1 {[%clk 0:02:57.1]}
8... b6 {[%clk 0:02:56.1]} 9. Nf3 {[%clk 0:02:53]} 9... Bb7 {[%clk 0:02:50.2]}
10. Bd3 {[%clk 0:02:53]} 10... Nxc3 {[%clk 0:02:47]} 11. Rxc3 {[%clk 0:02:52.2]}
11... cxd4 {[%clk 0:02:46.3]} 12. exd4 {[%clk 0:02:44.4]} 12... Nc6 {[%clk
0:02:45.4]} 13. O-O {[%clk 0:02:31.9]} 13... Rc8 {[%clk 0:02:40.5]} 14. Re1
{[%clk 0:02:21.5]} 14... Qf6 {[%clk 0:02:39.7]} 15. Be4 {[%clk 0:02:08.4]} 15...
d6 {[%clk 0:02:32.1]} 16. d5 {[%clk 0:01:49.7]} 16... exd5 {[%clk 0:02:23.7]}
17. Bxd5 {[%clk 0:01:48.5]} 17... Na5 {[%clk 0:02:23.4]} 18. Bxb7 {[%clk
0:01:43.9]} 18... Nxb7 {[%clk 0:02:23.3]} 19. Qd4 {[%clk 0:01:39.6]} 19... Qxd4
{[%clk 0:02:11.5]} 20. Nxd4 {[%clk 0:01:39.4]} 20... Rfe8 {[%clk 0:02:12.1]} 21.
Rce3 {[%clk 0:01:26.2]} 21... Rxe3 {[%clk 0:02:11.2]} 22. Rxe3 {[%clk
0:01:26.2]} 22... Kf8 {[%clk 0:02:06.5]} 23. Rc3 {[%clk 0:00:55.9]} 23... Na5
{[%clk 0:02:02.2]} 24. b3 {[%clk 0:00:55.9]} 24... d5 {[%clk 0:02:00.3]} 25. g3
{[%clk 0:00:36.1]} 25... dxc4 {[%clk 0:01:55.8]} 26. b4 {[%clk 0:00:36.4]} 26...
Nb7 {[%clk 0:01:54.9]} 27. Nb5 {[%clk 0:00:36.1]} 27... a6 {[%clk 0:01:53.3]}
28. Nd4 {[%clk 0:00:29.2]} 28... Nd6 {[%clk 0:01:52.5]} 29. a4 {[%clk
0:00:26.5]} 29... b5 {[%clk 0:01:51.7]} 30. axb5 {[%clk 0:00:25.5]} 30... Nxb5
{[%clk 0:01:52.6]} 31. Nxb5 {[%clk 0:00:24.5]} 31... axb5 {[%clk 0:01:53.5]} 32.
Kf1 {[%clk 0:00:25]} 32... Ra8 {[%clk 0:01:53.3]} 33. Rc1 {[%clk 0:00:15.9]}
33... Ra4 {[%clk 0:01:52.6]} 34. Rb1 {[%clk 0:00:16]} 34... Ra2 {[%clk
0:01:52.2]} 35. Kg2 {[%clk 0:00:16.1]} 35... g6 {[%clk 0:01:49.3]} 36. Kf3
{[%clk 0:00:16.4]} 36... Ra3+ {[%clk 0:01:49.4]} 37. Ke4 {[%clk 0:00:16]} 37...
Ke7 {[%clk 0:01:48.8]} 38. f4 {[%clk 0:00:15.5]} 38... Rb3 {[%clk 0:01:43.6]}
39. Rxb3 {[%clk 0:00:08.6]} 39... cxb3 {[%clk 0:01:44.5]} 40. Kd3 {[%clk
0:00:09.3]} 40... Kd6 {[%clk 0:01:45.1]} 41. Kc3 {[%clk 0:00:09.9]} 41... Kd5
{[%clk 0:01:45.8]} 42. Kxb3 {[%clk 0:00:10.2]} 42... Kd4 {[%clk 0:01:46.7]} 43.
h4 {[%clk 0:00:07.8]} 43... h5 {[%clk 0:01:46.1]} 0-1

[Event "*** SCC Grand Prix: Titled Tuesday Blitz"]
[Site "Chess.com"]
[Date "2020.08.25"]
[Round "5"]
[White "Borsuk_Konstantin"]
[Black "A-Fier"]
[Result "0-1"]
[WhiteElo "2543"]
[BlackElo "2762"]
[TimeControl "180+1"]
[EndTime "10:56:05 PDT"]
[Termination "A-Fier won on time"]

1. d4 {[%clk 0:03:00.9]} 1... Nf6 {[%clk 0:02:28.3]} 2. c4 {[%clk 0:03:00.7]}
2... c5 {[%clk 0:02:28.2]} 3. d5 {[%clk 0:03:00.5]} 3... e6 {[%clk 0:02:28.1]}
4. Nc3 {[%clk 0:03:00.1]} 4... exd5 {[%clk 0:02:28.5]} 5. cxd5 {[%clk 0:03:01]}
5... d6 {[%clk 0:02:28.9]} 6. Nf3 {[%clk 0:03:01.6]} 6... g6 {[%clk 0:02:29.3]}
7. g3 {[%clk 0:03:02.1]} 7... Bg7 {[%clk 0:02:29.7]} 8. Bg2 {[%clk 0:03:02.7]}
8... O-O {[%clk 0:02:30.3]} 9. O-O {[%clk 0:03:03.3]} 9... Re8 {[%clk
0:02:30.9]} 10. Nd2 {[%clk 0:03:03.3]} 10... Nbd7 {[%clk 0:02:29.3]} 11. Rb1
{[%clk 0:02:56.1]} 11... Ne5 {[%clk 0:02:27.5]} 12. b4 {[%clk 0:02:50.6]} 12...
c4 {[%clk 0:02:22.4]} 13. Qc2 {[%clk 0:02:25.6]} 13... Bf5 {[%clk 0:02:19.4]}
14. e4 {[%clk 0:02:22.4]} 14... Bd7 {[%clk 0:02:19.9]} 15. Ba3 {[%clk
0:02:11.5]} 15... b5 {[%clk 0:02:17]} 16. Nf3 {[%clk 0:02:01.1]} 16... Nd3
{[%clk 0:02:15.9]} 17. Ne1 {[%clk 0:01:50.8]} 17... Nxe1 {[%clk 0:02:01.7]} 18.
Rfxe1 {[%clk 0:01:41.8]} 18... Ng4 {[%clk 0:02:01.9]} 19. h3 {[%clk 0:01:36.4]}
19... Ne5 {[%clk 0:02:01.1]} 20. Red1 {[%clk 0:01:10.6]} 20... Qb6 {[%clk
0:01:57.2]} 21. Bc1 {[%clk 0:01:09.8]} 21... f5 {[%clk 0:01:54.4]} 22. Be3
{[%clk 0:01:07.6]} 22... Qb7 {[%clk 0:01:54.1]} 23. a4 {[%clk 0:00:54.5]} 23...
a6 {[%clk 0:01:52.9]} 24. exf5 {[%clk 0:00:26.7]} 24... Bxf5 {[%clk 0:01:52.1]}
25. Be4 {[%clk 0:00:27.2]} 25... Bxh3 {[%clk 0:01:51.6]} 26. Kh2 {[%clk
0:00:27]} 26... Bg4 {[%clk 0:01:50.1]} 27. Kg2 {[%clk 0:00:26.7]} 27... Bxd1
{[%clk 0:01:49.6]} 28. Rxd1 {[%clk 0:00:26.8]} 28... Rac8 {[%clk 0:01:48.5]} 29.
axb5 {[%clk 0:00:23.5]} 29... axb5 {[%clk 0:01:48.3]} 30. Ne2 {[%clk 0:00:12.2]}
30... Nd3 {[%clk 0:01:45.6]} 31. f3 {[%clk 0:00:10.2]} 31... Nxb4 {[%clk
0:01:43.1]} 32. Qb1 {[%clk 0:00:09.9]} 32... Nd3 {[%clk 0:01:43.3]} 33. Nf4
{[%clk 0:00:07.4]} 33... Nxf4+ {[%clk 0:01:42.9]} 34. Bxf4 {[%clk 0:00:07.5]}
34... Qb6 {[%clk 0:01:42.3]} 35. Qb4 {[%clk 0:00:03.6]} 35... c3 {[%clk
0:01:40]} 0-1

[Event "*** SCC Grand Prix: Titled Tuesday Blitz"]
[Site "Chess.com"]
[Date "2020.08.25"]
[Round "5"]
[White "mirceaparligras"]
[Black "ExtremeLearner"]
[Result "1-0"]
[WhiteElo "2677"]
[BlackElo "2395"]
[TimeControl "180+1"]
[EndTime "10:56:06 PDT"]
[Termination "mirceaparligras won by checkmate"]

1. e3 {[%clk 0:03:00.9]} 1... Nf6 {[%clk 0:02:52.5]} 2. d4 {[%clk 0:03:00.5]}
2... d5 {[%clk 0:02:43.8]} 3. Nf3 {[%clk 0:03:00]} 3... Bf5 {[%clk 0:02:41.2]}
4. c4 {[%clk 0:02:59]} 4... e6 {[%clk 0:02:40.8]} 5. Qb3 {[%clk 0:02:56.9]} 5...
Nc6 {[%clk 0:02:38.4]} 6. Bd2 {[%clk 0:02:40.8]} 6... Rb8 {[%clk 0:02:28.1]} 7.
cxd5 {[%clk 0:02:40.2]} 7... exd5 {[%clk 0:02:26.6]} 8. Bb5 {[%clk 0:02:39.7]}
8... Bd6 {[%clk 0:02:25.3]} 9. Nc3 {[%clk 0:02:36.5]} 9... a6 {[%clk 0:02:04]}
10. Be2 {[%clk 0:02:35.9]} 10... Ne7 {[%clk 0:01:57.7]} 11. Rc1 {[%clk
0:02:34.1]} 11... O-O {[%clk 0:01:53]} 12. O-O {[%clk 0:02:30.8]} 12... Ng6
{[%clk 0:01:49.5]} 13. Na4 {[%clk 0:02:24.6]} 13... Ne4 {[%clk 0:01:40.8]} 14.
Bb4 {[%clk 0:02:22.3]} 14... Bxb4 {[%clk 0:01:29.5]} 15. Qxb4 {[%clk 0:02:22.2]}
15... Nh4 {[%clk 0:01:28.2]} 16. Nxh4 {[%clk 0:02:15.8]} 16... Qxh4 {[%clk
0:01:29.1]} 17. Rxc7 {[%clk 0:02:15.1]} 17... Ng5 {[%clk 0:01:07.1]} 18. Qd6
{[%clk 0:02:02.5]} 18... Be4 {[%clk 0:00:53]} 19. Nc5 {[%clk 0:01:50.9]} 19...
b6 {[%clk 0:00:45.4]} 20. Nxe4 {[%clk 0:01:47.9]} 20... dxe4 {[%clk 0:00:44.3]}
21. Rfc1 {[%clk 0:01:43.5]} 21... Rbd8 {[%clk 0:00:39.7]} 22. Qg3 {[%clk
0:01:38.3]} 22... Qh6 {[%clk 0:00:38.9]} 23. R1c6 {[%clk 0:01:34.7]} 23... Ne6
{[%clk 0:00:38.5]} 24. Bc4 {[%clk 0:01:20.7]} 24... Rxd4 {[%clk 0:00:02.3]} 25.
exd4 {[%clk 0:01:17.5]} 25... Qc1+ {[%clk 0:00:03]} 26. Bf1 {[%clk 0:01:17.9]}
26... Qxb2 {[%clk 0:00:02.7]} 27. Rxe6 {[%clk 0:01:15.3]} 27... fxe6 {[%clk
0:00:03.6]} 28. Qxg7# {[%clk 0:01:15.1]} 1-0

[Event "*** SCC Grand Prix: Titled Tuesday Blitz"]
[Site "Chess.com"]
[Date "2020.08.25"]
[Round "5"]
[White "abfchess"]
[Black "alexgo05"]
[Result "1-0"]
[WhiteElo "2164"]
[BlackElo "2342"]
[TimeControl "180+1"]
[EndTime "10:56:06 PDT"]
[Termination "abfchess won by checkmate"]

1. d4 {[%clk 0:02:50.8]} 1... Nf6 {[%clk 0:02:59.9]} 2. Nf3 {[%clk 0:02:46.5]}
2... c5 {[%clk 0:02:58.9]} 3. d5 {[%clk 0:02:46.2]} 3... e6 {[%clk 0:02:59]} 4.
Nc3 {[%clk 0:02:45.7]} 4... b5 {[%clk 0:02:57.9]} 5. Bg5 {[%clk 0:02:34.5]} 5...
b4 {[%clk 0:02:53.5]} 6. Ne4 {[%clk 0:02:33.6]} 6... Bb7 {[%clk 0:02:39.2]} 7.
Bxf6 {[%clk 0:02:26.7]} 7... gxf6 {[%clk 0:02:40.1]} 8. c4 {[%clk 0:02:27.2]}
8... f5 {[%clk 0:02:35.5]} 9. Ng3 {[%clk 0:02:21.8]} 9... Bg7 {[%clk 0:02:31.8]}
10. Rb1 {[%clk 0:02:15.7]} 10... h5 {[%clk 0:01:57.8]} 11. h4 {[%clk 0:02:15]}
11... d6 {[%clk 0:01:56.6]} 12. e4 {[%clk 0:02:13.5]} 12... f4 {[%clk
0:01:55.5]} 13. Ne2 {[%clk 0:02:12.6]} 13... e5 {[%clk 0:01:23.4]} 14. g3 {[%clk
0:02:11.2]} 14... fxg3 {[%clk 0:01:12.3]} 15. Nxg3 {[%clk 0:02:12.1]} 15... Bc8
{[%clk 0:01:10.8]} 16. Be2 {[%clk 0:02:02.4]} 16... Qf6 {[%clk 0:00:57.7]} 17.
Ng5 {[%clk 0:01:57.6]} 17... Nd7 {[%clk 0:00:42.9]} 18. Nxh5 {[%clk 0:01:55.9]}
18... Qg6 {[%clk 0:00:40.9]} 19. Ng3 {[%clk 0:01:47.9]} 19... Nf6 {[%clk
0:00:38.9]} 20. Qd2 {[%clk 0:01:41.9]} 20... Bh6 {[%clk 0:00:36.3]} 21. Rg1
{[%clk 0:01:39.1]} 21... Bxg5 {[%clk 0:00:32.1]} 22. Qxg5 {[%clk 0:01:38.2]}
22... Qxg5 {[%clk 0:00:27.6]} 23. hxg5 {[%clk 0:01:39.1]} 23... Nh7 {[%clk
0:00:21.9]} 24. Nh5 {[%clk 0:01:39]} 24... Kf8 {[%clk 0:00:20.3]} 25. Kd2 {[%clk
0:01:29.7]} 25... Rg8 {[%clk 0:00:19.7]} 26. Nf6 {[%clk 0:01:27.2]} 26... Nxf6
{[%clk 0:00:17.9]} 27. gxf6 {[%clk 0:01:28.1]} 27... Rxg1 {[%clk 0:00:17.9]} 28.
Rxg1 {[%clk 0:01:28.6]} 28... Bd7 {[%clk 0:00:18.3]} 29. Rg7 {[%clk 0:01:28.7]}
29... a5 {[%clk 0:00:16.3]} 30. Bh5 {[%clk 0:01:29.1]} 30... Be8 {[%clk
0:00:16]} 31. Rh7 {[%clk 0:01:28.8]} 31... Kg8 {[%clk 0:00:16.6]} 32. Rg7+
{[%clk 0:01:29.1]} 32... Kf8 {[%clk 0:00:17.1]} 33. Ke3 {[%clk 0:01:28.7]} 33...
a4 {[%clk 0:00:16.6]} 34. f4 {[%clk 0:01:29.3]} 34... exf4+ {[%clk 0:00:16]} 35.
Kxf4 {[%clk 0:01:30.2]} 35... a3 {[%clk 0:00:16.3]} 36. b3 {[%clk 0:01:30.3]}
36... Ra7 {[%clk 0:00:15.5]} 37. Kg5 {[%clk 0:01:30.6]} 37... Rd7 {[%clk
0:00:15.4]} 38. Kh6 {[%clk 0:01:30.9]} 38... Ra7 {[%clk 0:00:15]} 39. Kh7 {[%clk
0:01:31.6]} 39... Ba4 {[%clk 0:00:13.2]} 40. Rg8# {[%clk 0:01:32.5]} 1-0